bitfinex/quotes_SOLUSD_20241022
["timestamp","ask_amount","ask_price","bid_price","bid_amount"]
[1729595738410,5.951,168.04,167.93,27.21617177]
[1729595739935,16.6305,168.07,167.93,27.21617177]
[1729595739936,5.9502,168.06,167.93,27.21617177]
[1729595740142,5.952,168.01,167.93,27.21617177]
[1729595740310,16.6305,168.07,167.91,6.20278454]
[1729595740515,23.876884,168.06,167.91,6.20278454]
[1729595740711,5.9528,167.99,167.91,6.20278454]
[1729595741638,14.8765,168.05,167.93,27.21617177]
[1729595741828,5.952,168.01,167.93,27.21617177]
[1729595743028,5.9524,168.0,167.93,27.21617177]
[1729595746631,14.8765,168.05,167.93,27.21617177]
[1729595746954,5.9526,168.0,167.91,33.40886907]
[1729595747155,5.9528,167.99,167.91,6.1926973]
[1729595747459,5.9528,167.99,167.91,33.40886907]
[1729595747952,43.776884,168.04,167.91,6.1926973]
[1729595748154,5.9534,167.97,167.88,33.23717177]
[1729595748360,5.9534,167.97,167.89,6.19254564]
[1729595751569,5.9541,167.95,167.85,5.51901098]
[1729595751737,15.8148,167.96,167.85,5.51901098]
[1729595751738,5.9546,167.94,167.85,5.51901098]
[1729595751936,5.9546,167.94,167.84,27.21617177]
[1729595751937,5.9546,167.94,167.86,6.19114031]
[1729595752357,30.6994,167.96,167.86,6.19114031]
[1729595752668,30.6994,167.96,167.82,13.22361961]
[1729595752669,5.9566,167.89,167.82,40.43979138]
[1729595752839,5.9566,167.89,167.82,27.83102417]
[1729595753160,5.9566,167.89,167.82,34.02125758]
[1729595753359,5.9566,167.89,167.82,6.80508581]
[1729595753558,5.9566,167.88,167.82,34.02125758]
[1729595753743,14.8862,167.94,167.82,34.02125758]
[1729595754339,5.9564,167.89,167.82,34.02125758]
[1729595755369,15.8148,167.96,167.85,27.21617177]
[1729595755565,5.9548,167.94,167.85,27.21617177]
[1729595755861,15.8148,167.96,167.85,27.21617177]
[1729595756237,5.9548,167.93,167.85,27.21617177]
[1729595758540,15.8148,167.96,167.88,27.21617177]
[1729595758741,6.4747,167.98,167.91,27.21617177]
[1729595758944,21.4562,168.0,167.91,27.21617177]
[1729595759642,15.5038,168.0,167.91,27.21617177]
[1729595759844,5.9528,167.99,167.91,27.21617177]
[1729595760458,5.9534,167.97,167.91,27.21617177]
[1729595760670,5.9531,167.98,167.91,27.21617177]
[1729595762458,15.5038,168.0,167.91,27.21617177]
[1729595762459,21.4561,168.0,167.91,27.21617177]
[1729595764657,15.5038,168.0,167.91,27.21617177]
[1729595764979,5.9528,167.99,167.91,27.21617177]
[1729595765661,15.5038,168.0,167.91,27.21617177]
[1729595765858,5.9536,167.97,167.91,27.21617177]
[1729595766057,15.5038,168.0,167.91,27.21617177]
[1729595766272,5.9538,167.96,167.91,27.21617177]
[1729595766452,5.9543,167.95,167.88,27.21617177]
[1729595767047,14.8818,167.99,167.88,27.21617177]
[1729595767266,5.9545,167.94,167.85,33.39863445]
[1729595767851,5.9551,167.93,167.85,33.39863445]
[1729595769078,5.9552,167.92,167.85,6.18246268]
[1729595769379,14.8836,167.97,167.85,6.18246268]
[1729595769680,5.9554,167.92,167.84,27.21617177]
[1729595771285,12.2168,167.93,167.84,27.21617177]
[1729595771489,6.2619,167.93,167.84,27.21617177]
[1729595771663,5.9552,167.92,167.84,27.21617177]
[1729595771864,6.2619,167.93,167.84,27.21617177]
[1729595772080,5.9552,167.92,167.84,27.21617177]
[1729595774276,15.7994,167.91,167.84,27.21617177]
[1729595774480,21.7549,167.91,167.84,27.21617177]
[1729595775180,15.7994,167.91,167.84,27.21617177]
[1729595775374,22.037,167.95,167.84,27.21617177]
[1729595775569,16.0826,167.95,167.84,27.21617177]
[1729595775774,22.0369,167.95,167.84,27.21617177]
[1729595776581,16.0826,167.95,167.87,27.21617177]
[1729595779300,15.5034,167.99,167.9,27.21617177]
[1729595779472,6.4094,168.02,167.93,27.21617177]
[1729595779673,15.5034,168.04,167.96,27.21617177]
[1729595780081,5.9514,168.03,167.93,27.21617177]
[1729595780272,15.5034,168.04,167.93,27.21617177]
[1729595780476,5.9518,168.02,167.93,27.21617177]
[1729595780970,15.5034,168.04,167.93,27.21617177]
[1729595781175,5.9533,167.98,167.9,27.21617177]
[1729595783174,14.8786,168.03,167.9,27.21617177]
[1729595783373,5.9534,167.97,167.9,27.21617177]
[1729595783574,21.6977,167.96,167.87,27.21617177]
[1729595783807,5.9542,167.95,167.87,27.21617177]
[1729595784097,15.7439,167.96,167.86,6.17963427]
[1729595784307,5.9548,167.93,167.86,6.17963427]
[1729595784474,29.730984,167.95,167.82,27.83102417]
[1729595784676,5.9561,167.9,167.82,34.02083962]
[1729595785380,21.7002,167.89,167.82,0.6148524]
[1729595786002,15.7439,167.89,167.82,0.6148524]
[1729595786917,5.9567,167.88,167.82,0.6148524]
[1729595790104,5.9573,167.87,167.82,0.6148524]
[1729595791191,21.8068,167.89,167.82,0.6148524]
[1729595791508,5.9566,167.88,167.82,0.6148524]
[1729595793207,5.9571,167.87,167.82,0.6148524]
[1729595793407,5.9566,167.88,167.82,0.6148524]
[1729595793601,21.8068,167.89,167.82,0.6148524]
[1729595794614,27.7632,167.89,167.82,0.6148524]
[1729595798411,21.8068,167.89,167.82,0.6148524]
[1729595798717,5.9577,167.85,167.82,0.6148524]
[1729595798910,21.8068,167.89,167.82,0.6148524]
[1729595799102,5.9574,167.86,167.82,0.6148524]
[1729595799792,5.9576,167.86,167.82,0.6148524]
[1729595801524,5.958,167.84,167.82,0.6148524]
[1729595802431,21.8068,167.89,167.82,0.6148524]
[1729595802636,5.9584,167.83,167.82,0.6148524]
[1729595803125,5.9584,167.83,167.74,6.18500747]
[1729595803126,5.959,167.82,167.74,6.18500747]
[1729595803312,6.2666,167.81,167.74,6.18500747]
[1729595804311,6.2666,167.81,167.72,17.05461562]
[1729595804510,5.9594,167.8,167.72,17.05461562]
[1729595804724,12.2257,167.81,167.72,23.24490294]
[1729595805233,16.4665,167.83,167.72,23.24490294]
[1729595806244,23.776884,167.82,167.72,6.19028732]
[1729595806408,5.9601,167.79,167.72,6.19028732]
[1729595806808,5.9601,167.79,167.71,5.52361811]
[1729595807004,23.776884,167.82,167.7,17.05461562]
[1729595807231,5.9607,167.77,167.68,23.25307195]
[1729595807625,5.9607,167.77,167.68,6.19845633]
[1729595807924,5.9613,167.75,167.66,6.8833524]
[1729595808139,23.776884,167.8,167.66,6.8833524]
[1729595808140,5.9621,167.73,167.66,0.6148524]
[1729595808318,15.2768,167.74,167.66,0.6148524]
[1729595809619,5.9624,167.72,167.66,0.6148524]
[1729595810108,15.2768,167.74,167.66,0.6148524]
[1729595811428,23.776884,167.73,167.66,0.6148524]
[1729595811640,5.9634,167.69,167.66,0.6148524]
[1729595811822,5.963,167.7,167.66,0.6148524]
[1729595812138,5.9637,167.68,167.66,0.6148524]
[1729595813137,22.361,167.69,167.66,0.6148524]
[1729595813344,5.964,167.67,167.66,0.6148524]
[1729595813841,5.9649,167.65,167.54,17.05461562]
[1729595814212,5.9649,167.65,167.56,6.21990456]
[1729595815544,23.776884,167.68,167.56,6.21990456]
[1729595815744,22.461,167.69,167.54,17.05461562]
[1729595815745,5.9652,167.64,167.54,17.05461562]
[1729595815910,5.9652,167.64,167.56,6.20992606]
[1729595816331,5.9648,167.65,167.56,6.20992606]
[1729595816644,43.776884,167.68,167.56,6.20992606]
[1729595816833,5.9651,167.65,167.56,6.20992606]
[1729595817139,22.361,167.69,167.57,40.83149962]
[1729595817327,16.3161,167.69,167.59,17.05461562]
[1729595817529,16.3161,167.69,167.57,23.776884]
[1729595817530,16.3161,167.69,167.63,17.05461562]
[1729595817825,27.8358,167.73,167.6,17.05461562]
[1729595818021,27.8358,167.73,167.58,6.16076341]
[1729595818022,27.8358,167.73,167.63,17.05461562]
[1729595818643,21.8737,167.73,167.63,17.05461562]
[1729595819143,15.5705,167.73,167.63,17.05461562]
[1729595819336,15.5705,167.73,167.65,17.05461562]
[1729595819643,15.5705,167.73,167.67,17.05461562]
[1729595820228,15.5705,167.73,167.63,27.32446653]
[1729595822238,15.5705,167.73,167.61,70.08126341]
[1729595822239,21.5325,167.73,167.6,27.32446653]
[1729595823514,15.8752,167.77,167.67,6.6376]
[1729595823831,5.9614,167.75,167.63,33.96206653]
[1729595824244,5.9619,167.74,167.63,33.96206653]
[1729595825447,15.8752,167.77,167.66,27.32446653]
[1729595826441,15.8752,167.77,167.67,93.776884]
[1729595826650,22.5486,167.81,167.69,27.32446653]
[1729595826946,15.8989,167.81,167.72,33.82576653]
[1729595827249,21.9964,167.85,167.72,33.82576653]
[1729595828023,21.9964,167.85,167.73,23.776884]
[1729595829043,15.8989,167.85,167.75,27.32446653]
[1729595829340,6.0211,167.89,167.79,27.32446653]
[1729595829341,16.0927,167.89,167.79,27.32446653]
[1729595829547,22.049,167.89,167.76,27.32446653]
[1729595829748,16.0927,167.89,167.76,27.32446653]
[1729595829949,5.9566,167.88,167.76,27.32446653]
[1729595830136,16.0927,167.89,167.76,27.32446653]
[1729595830645,16.0927,167.89,167.79,27.32446653]
[1729595830827,16.0927,167.89,167.8,6.1974]
[1729595831227,16.0927,167.89,167.76,33.52186653]
[1729595831454,22.0489,167.89,167.76,33.52186653]
[1729595832422,22.0489,167.89,167.76,6.1974]
[1729595832423,5.957,167.87,167.76,6.1974]
[1729595832920,16.0927,167.89,167.76,6.1974]
[1729595833548,16.0927,167.89,167.76,33.52186653]
[1729595834325,5.9567,167.88,167.76,33.52186653]
[1729595835022,5.957,167.87,167.76,33.52186653]
[1729595835937,16.0927,167.89,167.7,4.65783343]
[1729595835938,6.3613,167.86,167.7,3.41813343]
[1729595836139,22.0963,167.82,167.7,3.41813343]
[1729595838751,16.1373,167.82,167.7,3.41813343]
[1729595838951,5.9595,167.8,167.7,3.41813343]
[1729595839132,16.1373,167.82,167.7,3.41813343]
[1729595839452,5.9606,167.77,167.7,3.41813343]
[1729595839644,5.9606,167.77,167.65,27.32446653]
[1729595839848,23.776884,167.81,167.65,27.32446653]
[1729595840055,5.9608,167.77,167.65,27.32446653]
[1729595840540,5.9609,167.76,167.65,27.32446653]
[1729595840743,5.9609,167.76,167.64,12.48740803]
[1729595840945,6.4759,167.78,167.64,12.48740803]
[1729595841255,5.9614,167.75,167.64,12.48740803]
[1729595842136,5.9616,167.74,167.64,12.48740803]
[1729595844143,5.963,167.7,167.64,6.21330803]
[1729595844340,5.963,167.7,167.56,70.0]
[1729595844341,6.1026,167.68,167.55,6.3679]
[1729595844863,6.1026,167.68,167.56,6.21734948]
[1729595845045,5.9644,167.66,167.56,6.21734948]
[1729595845350,6.1026,167.68,167.56,6.21734948]
[1729595845351,5.9652,167.64,167.56,6.21734948]
[1729595845658,6.1026,167.68,167.56,6.21734948]
[1729595845852,5.9657,167.63,167.56,6.21734948]
[1729595846351,5.966,167.62,167.56,6.21734948]
[1729595846553,58.787084,167.67,167.56,6.21734948]
[1729595846860,5.9662,167.62,167.56,6.21734948]
[1729595847054,0.1,167.66,167.56,6.21734948]
[1729595847256,21.3353,167.6,167.51,6.0392]
[1729595847454,21.3353,167.6,167.52,6.22289578]
[1729595847837,5.967,167.59,167.52,6.22289578]
[1729595848031,15.3687,167.6,167.52,6.22289578]
[1729595849239,21.3353,167.6,167.52,6.22289578]
[1729595849641,5.9679,167.57,167.49,0.6148524]
[1729595849854,5.9682,167.56,167.49,0.6148524]
[1729595850365,5.969,167.54,167.49,0.6148524]
[1729595850759,5.9683,167.55,167.49,0.6148524]
[1729595850960,15.4128,167.56,167.49,0.6148524]
[1729595851164,23.776884,167.55,167.49,0.6148524]
[1729595851456,5.9692,167.53,167.49,0.6148524]
[1729595851852,5.9696,167.52,167.49,0.6148524]
[1729595852152,5.9701,167.51,167.49,0.6148524]
[1729595852856,5.9701,167.5,167.49,0.6148524]
[1729595853467,5.9689,167.54,167.49,0.6148524]
[1729595853966,5.9692,167.53,167.49,0.6148524]
[1729595854155,23.776884,167.55,167.49,0.6148524]
[1729595854345,5.9698,167.51,167.49,0.6148524]
[1729595855568,5.9693,167.53,167.49,0.6148524]
[1729595855756,15.4128,167.56,167.49,0.6148524]
[1729595856058,5.9686,167.55,167.49,0.6148524]
[1729595856274,5.9687,167.54,167.49,0.6148524]
[1729595856654,21.3811,167.56,167.49,0.6148524]
[1729595856863,5.9685,167.55,167.49,0.6148524]
[1729595857249,5.9687,167.54,167.49,0.6148524]
[1729595857584,5.9696,167.52,167.49,0.6148524]
[1729595859047,5.9698,167.51,167.49,0.6148524]
[1729595859546,23.776884,167.53,167.49,0.6148524]
[1729595859762,5.9701,167.5,167.49,0.6148524]
[1729595863774,29.746984,167.5,167.49,0.6148524]
[1729595867968,34.9218,167.54,167.49,0.6148524]
[1729595868276,5.9699,167.51,167.49,0.6148524]
[1729595868674,15.5128,167.56,167.49,0.6148524]
[1729595868981,5.9697,167.52,167.49,0.6148524]
[1729595869883,23.776884,167.54,167.49,0.6148524]
[1729595870087,5.9697,167.51,167.49,0.6148524]
[1729595871168,5.97,167.51,167.49,0.6148524]
[1729595873074,5.969,167.53,167.49,0.6148524]
[1729595874380,5.9684,167.55,167.49,0.6148524]
[1729595874579,15.4128,167.56,167.49,0.6148524]
[1729595874867,5.9683,167.55,167.49,0.6148524]
[1729595875799,5.9665,167.6,167.49,7.2249524]
[1729595876089,5.9665,167.6,167.49,24.35880034]
[1729595876273,5.967,167.59,167.49,24.35880034]
[1729595876484,15.3961,167.61,167.49,7.2249524]
[1729595876708,5.9684,167.55,167.49,0.6148524]
[1729595876889,43.876884,167.57,167.49,0.6148524]
[1729595877093,5.9693,167.53,167.49,0.6148524]
[1729595878885,5.9694,167.52,167.49,0.6148524]
[1729595880077,23.776884,167.55,167.49,0.6148524]
[1729595880302,23.776884,167.53,167.49,0.6148524]
[1729595880606,5.9701,167.5,167.49,0.6148524]
[1729595882207,29.746984,167.5,167.49,0.6148524]
[1729595882382,49.746984,167.5,167.49,0.6148524]
[1729595884292,49.846984,167.5,167.49,0.6148524]
[1729595885611,5.9724,167.44,167.37,6.3979]
[1729595886511,5.9719,167.45,167.37,6.3979]
[1729595886810,16.3569,167.5,167.4,17.13384794]
[1729595887016,5.9705,167.49,167.4,17.13384794]
[1729595888199,5.9699,167.51,167.4,17.13384794]
[1729595889409,5.9694,167.52,167.4,17.13384794]
[1729595889609,21.9948,167.54,167.42,17.13384794]
[1729595889817,5.9691,167.53,167.42,17.13384794]
[1729595890612,5.969,167.53,167.42,17.13384794]
[1729595890908,21.9948,167.54,167.42,17.13384794]
[1729595890909,5.9697,167.52,167.42,17.13384794]
[1729595891114,5.9698,167.51,167.4,17.13384794]
[1729595892122,5.9709,167.48,167.38,17.13384794]
[1729595892992,5.9709,167.48,167.37,6.3979]
[1729595893191,43.776884,167.53,167.37,6.3979]
[1729595893192,5.9717,167.46,167.37,6.3979]
[1729595894813,5.972,167.45,167.37,6.3979]
[1729595894995,20.0,167.49,167.37,6.3979]
[1729595894996,5.9723,167.44,167.37,6.3979]
[1729595896997,15.2269,167.46,167.37,6.3979]
[1729595897211,15.2269,167.46,167.38,17.13384794]
[1729595897397,29.9433,167.55,167.38,17.13384794]
[1729595897398,20.0,167.5,167.38,17.13384794]
[1729595897593,5.9709,167.48,167.38,17.13384794]
[1729595897899,5.9704,167.5,167.38,17.13384794]
[1729595898101,5.9706,167.49,167.38,17.13384794]
[1729595898708,5.9712,167.48,167.38,17.13384794]
[1729595899117,20.0,167.49,167.38,17.13384794]
[1729595900104,5.9694,167.52,167.39,23.776884]
[1729595900306,15.2269,167.53,167.42,17.13384794]
[1729595900639,15.2269,167.53,167.46,17.13384794]
[1729595900794,5.9678,167.57,167.46,17.13384794]
[1729595902303,5.9678,167.57,167.46,23.776884]
[1729595903299,5.9678,167.57,167.45,6.4523]
[1729595903300,43.776884,167.57,167.45,6.4523]
[1729595903700,5.9691,167.53,167.45,6.4523]
[1729595906408,5.968,167.56,167.45,6.4523]
[1729595906620,5.9676,167.57,167.46,23.776884]
[1729595907312,15.2269,167.58,167.46,23.776884]
[1729595907623,5.968,167.56,167.46,23.776884]
[1729595909432,5.9687,167.54,167.45,6.4523]
[1729595909929,20.0,167.53,167.41,33.52873358]
[1729595910106,5.9694,167.52,167.41,33.52873358]
[1729595911040,5.9698,167.51,167.41,33.52873358]
[1729595912024,35.5817,167.52,167.41,33.52873358]
[1729595912224,5.9709,167.48,167.41,6.1394]
[1729595914620,5.9712,167.47,167.39,6.22070204]
[1729595915909,5.9712,167.47,167.37,33.74773358]
[1729595915910,5.9719,167.45,167.37,6.3584]
[1729595916229,5.9718,167.46,167.37,6.3584]
[1729595917426,5.9723,167.44,167.37,6.3584]
[1729595917644,5.9729,167.43,167.37,6.3584]
[1729595918015,5.9723,167.44,167.37,6.3584]
[1729595918619,43.776884,167.49,167.37,6.3584]
[1729595918620,20.0,167.49,167.37,6.3584]
[1729595918819,5.9711,167.48,167.37,6.3584]
[1729595919115,5.9711,167.48,167.37,33.74773358]
[1729595919626,5.9711,167.48,167.38,23.776884]
[1729595922435,5.9711,167.48,167.39,17.13199477]
[1729595923237,5.9711,167.48,167.38,23.776884]
[1729595923419,5.9711,167.48,167.38,40.90887877]
[1729595925015,5.9718,167.46,167.38,17.13199477]
[1729595925331,5.9718,167.46,167.37,6.3584]
[1729595925935,20.0,167.48,167.37,6.3584]
[1729595926228,5.9719,167.45,167.37,6.3584]
[1729595927836,20.0,167.48,167.36,23.35561115]
[1729595927837,16.608,167.44,167.36,6.22361638]
[1729595928134,5.9729,167.43,167.36,6.22361638]
[1729595928540,16.608,167.44,167.32,6.7292524]
[1729595928839,5.9736,167.41,167.32,30.08804904]
[1729595932140,16.608,167.44,167.32,12.95605427]
[1729595932446,5.9734,167.41,167.32,12.95605427]
[1729595932615,5.9731,167.42,167.32,12.95605427]
[1729595933027,16.608,167.44,167.33,40.90887877]
[1729595933232,22.5805,167.44,167.35,17.13199477]
[1729595933422,16.608,167.44,167.35,17.13199477]
[1729595934041,22.5803,167.44,167.35,17.13199477]
[1729595935435,22.5803,167.44,167.33,40.90887877]
[1729595935623,5.9726,167.43,167.33,40.90887877]
[1729595937540,16.608,167.44,167.35,17.13199477]
[1729595937747,16.608,167.44,167.33,23.776884]
[1729595937748,21.82,167.49,167.37,17.13199477]
[1729595937929,5.9712,167.47,167.37,17.13199477]
[1729595938643,5.9715,167.46,167.37,17.13199477]
[1729595940233,5.9723,167.44,167.35,17.13199477]
[1729595941135,5.9732,167.42,167.33,6.22744649]
[1729595941342,21.8181,167.4,167.33,6.22744649]
[1729595941544,5.9743,167.39,167.33,6.22744649]
[1729595941730,5.9743,167.39,167.32,0.6148524]
[1729595942740,21.818,167.4,167.32,0.6148524]
[1729595944644,15.8443,167.4,167.32,0.6148524]
[1729595944829,21.818,167.4,167.32,0.6148524]
[1729595945967,15.755,167.44,167.35,17.13199477]
[1729595946251,15.755,167.44,167.32,0.6148524]
[1729595946252,15.755,167.44,167.37,17.13199477]
[1729595949548,21.7274,167.44,167.35,17.13199477]
[1729595949951,21.7274,167.44,167.32,0.6148524]
[1729595949952,5.973,167.42,167.33,17.13199477]
[1729595950448,15.755,167.44,167.32,0.6148524]
[1729595950449,23.776884,167.43,167.32,0.6148524]
[1729595950654,5.9736,167.41,167.32,0.6148524]
[1729595951059,23.776884,167.41,167.32,0.6148524]
[1729595951245,5.9744,167.39,167.32,0.6148524]
[1729595952163,5.974,167.39,167.32,0.6148524]
[1729595956563,5.9742,167.39,167.32,0.6148524]
[1729595956944,6.1756,167.42,167.32,0.6148524]
[1729595957260,12.1488,167.42,167.32,17.74684717]
[1729595957663,15.755,167.44,167.33,23.776884]
[1729595957853,15.755,167.44,167.34,17.13199477]
[1729595958875,15.755,167.44,167.33,40.90887877]
[1729595959069,21.7273,167.44,167.33,40.90887877]
[1729595959861,15.755,167.44,167.38,17.13199477]
[1729595960063,15.0745,167.49,167.4,17.13199477]
[1729595961284,21.045,167.49,167.4,17.13199477]
[1729595961646,15.0745,167.49,167.38,17.13199477]
[1729595961980,20.0,167.47,167.33,29.893184]
[1729595962270,20.0,167.47,167.35,23.776884]
[1729595962566,5.9723,167.44,167.34,40.90887877]
[1729595963877,5.9732,167.42,167.34,17.13199477]
[1729595964053,5.973,167.42,167.34,17.13199477]
[1729595965673,5.9734,167.41,167.32,17.74684717]
[1729595966678,15.8412,167.43,167.32,17.74684717]
[1729595967068,21.8138,167.43,167.32,17.74684717]
[1729595967384,21.8138,167.43,167.34,17.13199477]
[1729595969753,15.8412,167.43,167.34,17.13199477]
[1729595969975,21.814,167.43,167.34,17.13199477]
[1729595970676,15.8412,167.43,167.34,17.13199477]
[1729595970877,15.8412,167.43,167.33,23.776884]
[1729595970878,5.973,167.42,167.33,23.776884]
[1729595972466,15.8412,167.43,167.36,17.13199477]
[1729595973873,15.8412,167.43,167.37,23.776884]
[1729595975070,15.8412,167.43,167.38,17.13199477]
[1729595978780,15.1105,167.47,167.4,17.13199477]
[1729595978966,15.1105,167.47,167.42,17.13199477]
[1729595980789,12.3948,167.5,167.42,17.13199477]
[1729595981597,6.4247,167.5,167.42,17.13199477]
[1729595982279,15.1105,167.51,167.42,17.13199477]
[1729595982600,15.1105,167.51,167.44,17.13199477]
[1729595984769,5.9701,167.5,167.39,23.776884]
[1729595984969,25.9701,167.5,167.41,17.13199477]
[1729595985784,5.9705,167.49,167.41,17.13199477]
[1729595986693,5.9705,167.49,167.41,16.43199477]
[1729595989194,21.0806,167.51,167.41,16.43199477]
[1729595989396,15.1105,167.51,167.39,23.776884]
[1729595989593,5.9701,167.5,167.42,17.13199477]
[1729595989781,15.1105,167.51,167.44,17.13199477]
[1729595991088,15.1105,167.51,167.42,17.13199477]
[1729595991288,21.0805,167.51,167.42,17.13199477]
[1729595992079,5.9702,167.5,167.42,17.13199477]
[1729595992490,15.1105,167.51,167.42,17.13199477]
[1729595992673,21.0803,167.51,167.42,17.13199477]
[1729595993781,15.1105,167.51,167.42,17.13199477]
[1729595993982,5.9701,167.5,167.42,17.13199477]
[1729595998103,8.07977207,167.54,167.49,70.0]
[1729595998300,16.229,167.67,167.54,23.776884]
[1729595998501,6.23333619,167.65,167.59,17.13199477]
[1729595998801,6.23333619,167.65,167.55,6.4586]
[1729595998802,16.229,167.67,167.61,17.13199477]
[1729595998985,16.229,167.67,167.63,17.13199477]
[1729595999382,16.229,167.67,167.61,17.13199477]
[1729596001307,16.229,167.67,167.59,17.13199477]
[1729596002298,5.9659,167.62,167.49,6.25]
[1729596002493,5.9662,167.61,167.51,17.13199477]
[1729596002693,20.0,167.64,167.51,17.13199477]
[1729596002694,20.0,167.62,167.51,17.13199477]
[1729596003185,5.9665,167.6,167.51,17.13199477]
[1729596004801,5.9665,167.6,167.51,17.03199477]
[1729596008202,5.9662,167.61,167.51,17.03199477]
[1729596008383,16.229,167.67,167.54,23.776884]
[1729596008589,16.229,167.67,167.55,17.13199477]
[1729596008899,5.9651,167.64,167.55,17.13199477]
[1729596009298,5.9656,167.63,167.55,17.13199477]
[1729596009689,5.9659,167.62,167.53,17.13199477]
[1729596011391,14.912,167.65,167.51,17.13199477]
[1729596011708,20.0,167.63,167.51,17.13199477]
[1729596012091,5.9658,167.62,167.51,17.13199477]
[1729596012294,20.0,167.64,167.51,17.13199477]
[1729596012494,5.9665,167.61,167.51,17.13199477]
[1729596013089,20.0,167.64,167.51,17.13199477]
[1729596013292,5.9666,167.6,167.51,17.13199477]
[1729596023891,16.0614,167.59,167.51,17.13199477]
[1729596024216,5.30868149,167.59,167.49,29.60237]
[1729596024405,5.9675,167.58,167.49,29.60237]
[1729596025099,5.30868149,167.59,167.51,17.13199477]
[1729596025300,11.27558149,167.59,167.51,17.13199477]
[1729596025805,11.27558149,167.59,167.49,12.47037523]
[1729596025806,5.9655,167.63,167.55,17.13199477]
[1729596026908,5.9652,167.64,167.55,17.13199477]
[1729596027211,14.45807589,167.66,167.52,23.776884]
[1729596027212,23.90847589,167.66,167.59,17.13199477]
[1729596029003,15.8351,167.66,167.59,17.13199477]
[1729596030628,21.7996,167.66,167.59,17.13199477]
[1729596032699,5.9648,167.65,167.57,17.13199477]
[1729596039003,5.9648,167.65,167.55,23.776884]
[1729596039217,5.9648,167.65,167.57,17.13199477]
[1729596040421,5.9648,167.65,167.6,10.94115963]
[1729596045131,21.7995,167.66,167.6,10.94115963]
[1729596045336,5.9636,167.69,167.62,10.94115963]
[1729596045713,16.0634,167.7,167.66,10.94115963]
[1729596046033,16.0634,167.7,167.67,10.94115963]
[1729596046237,0.1,167.7,167.67,10.94115963]
[1729596051536,0.1,167.7,167.59,28.89551576]
[1729596051537,0.1,167.7,167.66,10.94115963]
[1729596057329,0.1,167.7,167.68,10.94115963]
[1729596058635,0.1,167.7,167.63,12.6073]
[1729596059041,0.1,167.7,167.66,10.94115963]
[1729596060429,0.1,167.7,167.68,10.94115963]
[1729596068323,0.1,167.7,167.69,10.94115963]
[1729596069640,15.133,167.83,167.7,23.776884]
[1729596069845,21.0914,167.83,167.77,10.94115963]
[1729596071043,21.0914,167.83,167.71,8.02639746]
[1729596071044,15.133,167.83,167.71,8.02639746]
[1729596071252,5.9594,167.81,167.74,10.94115963]
[1729596072050,5.9594,167.81,167.7,30.9482976]
[1729596072357,5.9594,167.81,167.74,10.94115963]
[1729596073558,5.9598,167.79,167.7,30.9482976]
[1729596073761,15.133,167.83,167.71,10.94115963]
[1729596073762,23.776884,167.82,167.71,10.94115963]
[1729596074492,5.9601,167.79,167.71,10.94115963]
[1729596077265,5.9601,167.79,167.73,10.94115963]
[1729596078267,5.9591,167.82,167.75,10.94115963]
[1729596078448,21.0914,167.83,167.77,10.94115963]
[1729596078656,5.9588,167.82,167.77,10.94115963]
[1729596078849,15.133,167.83,167.75,10.94115963]
[1729596079054,5.9594,167.81,167.75,10.94115963]
[1729596079568,5.9595,167.8,167.75,10.94115963]
[1729596080262,15.133,167.83,167.67,12.6073]
[1729596080263,23.776884,167.82,167.67,12.6073]
[1729596080453,5.9603,167.78,167.71,10.94115963]
[1729596082371,5.9603,167.78,167.68,23.776884]
[1729596082666,5.9603,167.78,167.71,10.94115963]
[1729596084655,5.9602,167.78,167.73,10.94115963]
[1729596088366,5.9602,167.78,167.72,10.94115963]
[1729596089868,23.776884,167.82,167.66,12.61511695]
[1729596089869,5.9611,167.76,167.66,12.61511695]
[1729596090067,5.9611,167.76,167.69,10.94115963]
[1729596090068,22.4294,167.76,167.69,10.94115963]
[1729596091266,43.776884,167.73,167.66,6.22591695]
[1729596091445,5.9638,167.68,167.62,10.94115963]